fUSD/lending_fUSD_20250503
["ID","MTS","AMOUNT","RATE_DAILY","PERIOD"]
[359671445,1746238249114,-562411.4291733,0.0002,2]
[359671446,1746238249123,-3032724.35917238,0.0002,2]
[359671447,1746238249827,-450.0,0.00019593,2]
[359671448,1746238249836,-194.80724422,0.00019594,2]
[359671449,1746238249846,-450.0,0.00019867,2]
[359671450,1746238249855,-1905.19275578,0.0002,2]
[359671451,1746238250344,-5810.74756491,0.0002,2]
[359671452,1746238250889,-1154.629,0.00019959,2]
[359671453,1746238250900,-3668.871,0.0002,2]
[359671454,1746238287645,211.82,0.00019178,2]
[359671455,1746238349101,161.70798357,0.00019494,2]
[359671456,1746238370986,182.82,0.00019178,2]
[359671457,1746238392677,2095.0,0.00032877,60]
[359671458,1746238399430,1000.0,0.00019494,2]
[359671459,1746238442477,1000.0,0.00019494,2]
[359671460,1746238451526,555.93791232,0.00019494,2]
[359671461,1746238497713,6338.14,0.00018826,2]
[359671462,1746238519478,5000.0,0.000195,2]
[359671463,1746238606772,638.58,0.000188,2]
[359671464,1746238616497,164.85,0.000188,2]
[359671465,1746238616902,164.85,0.00018819,2]
[359671466,1746238617124,164.85,0.00018838,2]
[359671467,1746238617546,164.85,0.00018856,2]
[359671468,1746238617971,164.85,0.00018875,2]
[359671469,1746238618173,164.85,0.00018894,2]
[359671470,1746238631855,1000.0,0.00032877,60]
[359671471,1746238635506,314.34,0.00018745,2]
[359671472,1746238636205,189.29691124,0.00016828,2]
[359671473,1746238636233,202.22308876,0.00016828,2]
[359671474,1746238636428,391.52,0.00019091,2]
[359671475,1746238669876,800.0,0.00019501,2]
[359671476,1746238801813,629.0,0.0003287,60]
[359671478,1746238814108,618.0,0.0003287,60]
[359671479,1746238837749,2736.24848025,0.00019493,2]
[359671480,1746238864426,2860.83736339,0.00019489,2]
[359671481,1746238928797,2300.0,0.000192,7]
[359671482,1746238929794,1000.0,0.00018688,2]
[359671483,1746238930895,4600.0,0.000193,7]
[359671484,1746238932986,7000.0,0.000194,7]
[359671485,1746238935120,9300.0,0.000195,7]
[359671486,1746238937173,11700.0,0.000196,7]
[359671487,1746238939315,2300.0,0.000197,7]
[359671488,1746238941455,2300.0,0.000198,7]
[359671489,1746238943558,2300.0,0.000199,7]
[359671490,1746238947976,163.050311,0.0003287,60]
[359671491,1746238951314,163.050311,0.0003287,61]
[359671492,1746238951893,2031.58290066,0.00019,2]
[359671493,1746238955060,163.050311,0.0003287,62]
[359671494,1746238957759,163.050311,0.0003287,63]
[359671495,1746238959232,3336.0,0.00032876,60]
[359671496,1746238964300,163.050311,0.0003287,64]
[359671497,1746238970347,163.050311,0.0003287,65]
[359671498,1746238973175,163.050311,0.0003287,66]
[359671499,1746238976075,163.050311,0.0003287,67]
[359671500,1746238979231,163.050311,0.0003287,68]
[359671501,1746238982778,163.050311,0.0003287,69]
[359671502,1746238987067,163.050311,0.0003287,70]
[359671503,1746238990272,163.050311,0.0003287,71]
[359671504,1746238993283,163.050311,0.0003287,72]
[359671505,1746238996363,163.050311,0.0003287,73]
[359671506,1746238999360,163.050311,0.0003287,74]
[359671507,1746239002338,163.050311,0.0003287,75]
[359671508,1746239005381,163.050311,0.0003287,76]
[359671509,1746239022175,163.050311,0.0003287,106]
[359671510,1746239025078,163.050311,0.0003287,107]
[359671511,1746239031449,163.050311,0.0003287,108]
[359671512,1746239032419,250.56719058,0.0001933,2]
[359671513,1746239034223,163.050311,0.0003287,109]
[359671514,1746239038462,163.050311,0.0003287,110]
[359671515,1746239041501,163.050311,0.0003287,111]
[359671516,1746239045718,163.050311,0.0003287,112]
[359671517,1746239048771,163.050311,0.0003287,113]
[359671518,1746239053171,163.050311,0.0003287,114]
[359671519,1746239058913,163.050311,0.0003287,115]
[359671520,1746239151835,153.56,0.00018674,2]
[359671521,1746239186472,4215.83211265,0.00031,120]
[359671523,1746239224050,2462.62363218,0.00019492,2]
[359671524,1746239231325,645.34052031,0.00019477,2]
[359671525,1746239232292,200.0,0.000192,7]
[359671526,1746239234447,500.0,0.000193,7]
[359671527,1746239236546,700.0,0.000194,7]
[359671528,1746239238646,1000.0,0.000195,7]
[359671529,1746239240786,1200.0,0.000196,7]
[359671530,1746239242881,200.0,0.000197,7]
[359671531,1746239245029,200.0,0.000198,7]
[359671532,1746239245423,200.0,0.00018674,2]
[359671533,1746239247125,150.050311,0.0003287,116]
[359671534,1746239247159,200.0,0.000199,7]
[359671535,1746239250715,150.050311,0.0003287,117]
[359671536,1746239253665,150.050311,0.0003287,118]
[359671537,1746239257245,150.050311,0.0003287,119]
[359671538,1746239261134,150.050311,0.0003287,120]
[359671539,1746239277799,5441.05,0.00018688,2]
[359671541,1746239314218,9302.25,0.00018801,2]
[359671542,1746239317244,23900.0,0.0001868,2]
[359671543,1746239375963,207.0,0.0002999,30]
[359671544,1746239376302,207.0,0.0002935,30]
[359671545,1746239376653,207.0,0.0002869,30]
[359671546,1746239376950,207.0,0.0002804,30]
[359671547,1746239379890,2574.75362706,0.00019485,2]
[359671556,1746239417049,208.0,0.0001889,2]
[359671557,1746239417494,208.0,0.0001824,2]
[359671562,1746239431457,-544.02,0.00019531,2]
[359671564,1746239431515,-1154.48991978,0.00019531,2]
[359671565,1746239431566,-583.18548524,0.00019531,2]
[359671566,1746239431577,-293.058222,0.00019531,2]
[359671567,1746239431587,-151.0,0.00019535,2]
[359671568,1746239431597,-26.196788,0.00019536,2]
[359671569,1746239431623,-223.803212,0.00019536,2]
[359671570,1746239431632,-1612.79678799,0.00019537,2]
[359671571,1746239431679,-849.82684417,0.00019537,2]
[359671572,1746239431689,-208.0,0.0001955,2]
[359671573,1746239431698,-162.20047023,0.00019573,2]
[359671574,1746239431707,-1200.0,0.00019576,2]
[359671575,1746239431717,-300.0,0.00019576,2]
[359671576,1746239431726,-300.0,0.00019576,2]
[359671577,1746239431736,-207.4,0.00019576,2]
[359671578,1746239431745,-5138.2110586,0.00019577,2]
[359671579,1746239431757,-6324.29,0.00019577,2]
[359671580,1746239431768,-240.87817592,0.00019577,2]
[359671581,1746239431778,-170.96624398,0.00019577,2]
[359671582,1746239431789,-1591.08042183,0.00019577,2]
[359671602,1746239437509,-812.70696121,0.00019577,2]
[359671603,1746239437520,-151.0,0.00019581,2]
[359671604,1746239437530,-50.1762684,0.00019581,2]
[359671605,1746239437565,-100.8237316,0.00019581,2]
[359671606,1746239437576,-668.65185757,0.00019581,2]
[359671607,1746239437586,-2462.62363216,0.00019583,2]
[359671608,1746239437596,-434.62851603,0.00019585,2]
[359671609,1746239437610,-301.52281551,0.00019585,2]
[359671610,1746239437620,-2048.70121657,0.00019585,2]
[359671611,1746239437629,-2048.70121657,0.00019585,2]
[359671612,1746239437639,-2018.83129951,0.00019585,2]
[359671613,1746239437651,-29.86991706,0.00019585,2]
[359671614,1746239437660,-286.86008294,0.00019585,2]
[359671615,1746239437672,-1761.84113363,0.00019585,2]
[359671616,1746239437681,-512.56886633,0.00019585,2]
[359671617,1746239437692,-1536.13235024,0.00019585,2]
[359671618,1746239437702,-0.38764976,0.00019585,2]
[359671619,1746239437713,-2048.31356681,0.00019585,2]
[359671620,1746239437723,-2048.70121657,0.00019585,2]
[359671621,1746239437732,-1021.90837569,0.00019585,2]
[359671622,1746239437753,-1026.79284088,0.00019585,2]
[359671623,1746239437763,-2048.70121657,0.00019585,2]
[359671624,1746239437773,-2048.70121657,0.00019585,2]
[359671625,1746239437782,-1584.20472618,0.00019585,2]
[359671626,1746239437794,-422.74999925,0.00019585,2]
[359671627,1746239437840,-41.74649114,0.00019585,2]
[359671628,1746239437850,-715.7189243,0.00019585,2]
[359671629,1746239437862,-478.736916,0.00019585,2]
[359671632,1746239439677,-854.24537627,0.00019585,2]
[359671633,1746239439687,-2048.70121657,0.00019585,2]
[359671634,1746239439697,-2048.70121657,0.00019585,2]
[359671635,1746239439707,-2048.70121657,0.00019585,2]
[359671636,1746239439717,-2048.70121657,0.00019585,2]
[359671637,1746239439726,-2048.70121657,0.00019585,2]
[359671638,1746239439736,-2048.70121657,0.00019585,2]
[359671639,1746239439746,-2048.70121657,0.00019585,2]
[359671640,1746239439756,-2048.70121657,0.00019585,2]
[359671641,1746239439766,-2048.70121657,0.00019585,2]
[359671642,1746239439776,-2048.70121657,0.00019585,2]
[359671643,1746239439786,-2048.70121657,0.00019585,2]
[359671644,1746239439796,-2048.70121657,0.00019585,2]
[359671645,1746239439805,-2048.70121657,0.00019585,2]
[359671646,1746239439815,-2048.70121657,0.00019585,2]
[359671647,1746239439824,-2048.70121657,0.00019585,2]
[359671648,1746239439834,-2048.70121657,0.00019585,2]
[359671649,1746239439844,-2048.70121657,0.00019585,2]
[359671650,1746239439854,-2048.70121657,0.00019585,2]
[359671651,1746239439864,-2048.70121657,0.00019585,2]
[359671652,1746239439873,-2048.70121657,0.00019585,2]
[359671653,1746239439883,-2048.70121657,0.00019585,2]
[359671654,1746239439893,-2048.70121657,0.00019585,2]
[359671655,1746239439903,-2048.70121657,0.00019585,2]
[359671656,1746239439912,-2048.70121657,0.00019585,2]
[359671657,1746239439922,-2048.70121657,0.00019585,2]
[359671658,1746239439932,-2048.70121657,0.00019585,2]
[359671659,1746239439941,-2048.70121657,0.00019585,2]
[359671660,1746239439951,-2048.70121657,0.00019585,2]
[359671661,1746239439960,-2048.70121657,0.00019585,2]
[359671662,1746239439970,-2048.70121657,0.00019585,2]
[359671663,1746239439980,-2048.70121657,0.00019585,2]
[359671664,1746239439989,-2048.70121657,0.00019585,2]
[359671665,1746239439999,-2048.70121657,0.00019585,2]
[359671666,1746239440012,-2048.70121657,0.00019585,2]
[359671667,1746239440022,-2048.70121657,0.00019585,2]
[359671668,1746239440031,-2048.70121657,0.00019585,2]
[359671669,1746239440041,-2048.70121657,0.00019585,2]
[359671670,1746239440050,-2028.2142044,0.00019585,2]
[359671671,1746239440060,-2028.2142044,0.00019585,2]
[359671672,1746239440069,-2028.2142044,0.00019585,2]
[359671673,1746239440081,-2028.2142044,0.00019585,2]
[359671674,1746239440090,-2028.2142044,0.00019585,2]
[359671675,1746239440100,-2028.2142044,0.00019585,2]
[359671676,1746239440109,-2028.2142044,0.00019585,2]
[359671677,1746239440118,-2028.2142044,0.00019585,2]
[359671678,1746239440128,-2028.2142044,0.00019585,2]
[359671679,1746239440137,-2028.2142044,0.00019585,2]
[359671680,1746239440146,-2028.2142044,0.00019585,2]
[359671681,1746239440155,-2028.2142044,0.00019585,2]
[359671682,1746239440165,-2028.2142044,0.00019585,2]
[359671683,1746239440174,-2028.2142044,0.00019585,2]
[359671684,1746239440184,-2028.2142044,0.00019585,2]
[359671685,1746239440193,-2028.2142044,0.00019585,2]
[359671686,1746239440203,-2028.2142044,0.00019585,2]
[359671687,1746239440212,-2028.2142044,0.00019585,2]
[359671688,1746239440223,-2028.2142044,0.00019585,2]
[359671689,1746239440232,-2028.2142044,0.00019585,2]
[359671690,1746239440242,-2028.2142044,0.00019585,2]
[359671691,1746239440261,-2028.2142044,0.00019585,2]
[359671692,1746239440272,-2028.2142044,0.00019585,2]
[359671693,1746239440282,-2028.2142044,0.00019585,2]
[359671694,1746239440292,-2028.2142044,0.00019585,2]
[359671695,1746239440302,-2028.2142044,0.00019585,2]
[359671696,1746239440311,-2028.2142044,0.00019585,2]
[359671697,1746239440321,-2028.2142044,0.00019585,2]
[359671698,1746239440331,-2028.2142044,0.00019585,2]
[359671699,1746239440340,-2028.2142044,0.00019585,2]
[359671700,1746239440350,-2028.2142044,0.00019585,2]
[359671701,1746239440360,-2028.2142044,0.00019585,2]
[359671702,1746239440369,-2028.2142044,0.00019585,2]
[359671703,1746239440379,-2028.21420437,0.00019585,2]
[359671704,1746239440389,-2028.21420437,0.00019585,2]
[359671705,1746239440399,-2028.21420437,0.00019585,2]
[359671706,1746239440408,-2028.21420437,0.00019585,2]
[359671707,1746239440418,-2028.21420437,0.00019585,2]
[359671708,1746239440427,-2028.21420437,0.00019585,2]
[359671709,1746239440437,-2028.21420437,0.00019585,2]
[359671710,1746239440450,-4865.4292269,0.00019586,2]
[359671711,1746239440460,-450.0,0.00019586,2]
[359671712,1746239440470,-450.0,0.00019586,2]
[359671713,1746239440480,-450.0,0.00019586,2]
[359671714,1746239440491,-450.0,0.00019586,2]
[359671715,1746239440500,-450.0,0.00019586,2]
[359671716,1746239440511,-450.0,0.00019586,2]
[359671717,1746239440522,-450.0,0.00019586,2]
[359671718,1746239440532,-477.13,0.00019586,2]
[359671719,1746239440542,-450.0,0.00019586,2]
[359671720,1746239440552,-450.0,0.00019586,2]
[359671721,1746239440562,-450.0,0.00019586,2]
[359671722,1746239440572,-496.14,0.00019586,2]
[359671723,1746239440582,-450.0,0.00019586,2]
[359671724,1746239440592,-1027.56,0.00019586,2]
[359671725,1746239440601,-4528.88,0.00019586,2]
[359671726,1746239440612,-450.0,0.00019586,2]
[359671727,1746239440621,-504.964828,0.00019586,2]
[359671728,1746239440631,-450.0,0.00019586,2]
[359671729,1746239440641,-450.0,0.00019586,2]
[359671730,1746239440651,-450.0,0.00019586,2]
[359671731,1746239440661,-1476.05,0.00019586,2]
[359671732,1746239440670,-857.216181,0.00019586,2]
[359671733,1746239440679,-450.0,0.00019586,2]
[359671734,1746239440689,-450.0,0.00019586,2]
[359671735,1746239440699,-450.0,0.00019586,2]
[359671736,1746239440708,-311.31525845,0.00019586,2]
[359671737,1746239440718,-450.0,0.00019586,2]
[359671738,1746239440727,-450.0,0.00019586,2]
[359671739,1746239440736,-450.0,0.00019586,2]
[359671740,1746239440746,-556.46148673,0.00019586,2]
[359671741,1746239440756,-450.0,0.00019586,2]
[359671742,1746239440765,-6073.6,0.00019586,2]
[359671743,1746239440775,-450.0,0.00019586,2]
[359671744,1746239440784,-450.0,0.00019587,2]
[359671745,1746239440794,-664.44,0.00019587,2]
[359671746,1746239440803,-450.0,0.00019587,2]
[359671747,1746239440813,-450.0,0.00019587,2]
[359671748,1746239440822,-578.65493332,0.00019587,2]
[359671749,1746239440832,-450.0,0.00019587,2]
[359671750,1746239440842,-450.0,0.00019587,2]
[359671751,1746239440851,-450.0,0.00019587,2]
[359671752,1746239440861,-500.0,0.00019587,2]
[359671753,1746239440871,-450.0,0.00019587,2]
[359671754,1746239440880,-450.0,0.00019587,2]
[359671755,1746239440889,-450.0,0.00019587,2]
[359671756,1746239440900,-478.11,0.00019587,2]
[359671757,1746239440910,-1141.48,0.00019587,2]
[359671758,1746239440919,-450.0,0.00019587,2]
[359671759,1746239440930,-1209.7,0.00019587,2]
[359671760,1746239440939,-450.0,0.00019587,2]
[359671761,1746239440949,-450.0,0.00019587,2]
[359671762,1746239440959,-450.0,0.00019587,2]
[359671763,1746239440968,-519.37,0.00019587,2]
[359671764,1746239440978,-1021.32,0.00019587,2]
[359671765,1746239440988,-450.0,0.00019587,2]
[359671766,1746239440998,-526.38,0.00019587,2]
[359671767,1746239441008,-1563.24,0.00019587,2]
[359671768,1746239441018,-499.94,0.00019587,2]
[359671769,1746239441027,-450.0,0.00019587,2]
[359671770,1746239441038,-450.0,0.00019587,2]
[359671771,1746239441048,-39125.13188296,0.00019587,2]
[359671772,1746239441059,-450.0,0.00019589,2]
[359671773,1746239441069,-450.0,0.00019589,2]
[359671774,1746239441079,-450.0,0.00019589,2]
[359671775,1746239441088,-450.0,0.00019589,2]
[359671776,1746239441098,-450.0,0.00019589,2]
[359671777,1746239441108,-450.0,0.00019589,2]
[359671778,1746239441118,-450.0,0.00019589,2]
[359671779,1746239441127,-450.0,0.00019589,2]
[359671780,1746239441138,-450.0,0.00019589,2]
[359671781,1746239441148,-450.0,0.00019589,2]
[359671782,1746239441159,-450.0,0.00019589,2]
[359671783,1746239441170,-233.28334774,0.00019589,2]
[359671784,1746239441181,-450.0,0.00019589,2]
[359671785,1746239441191,-450.0,0.00019589,2]
[359671786,1746239441201,-450.0,0.00019589,2]
[359671787,1746239441211,-770.04,0.00019589,2]
[359671788,1746239441221,-379.99347333,0.00019589,2]
[359671789,1746239441231,-450.0,0.00019589,2]
[359671790,1746239441242,-450.0,0.00019589,2]
[359671791,1746239441251,-450.0,0.00019589,2]
[359671792,1746239441261,-592.73,0.00019589,2]
[359671793,1746239441271,-450.0,0.00019589,2]
[359671794,1746239441281,-450.0,0.00019589,2]
[359671795,1746239441290,-450.0,0.00019589,2]
[359671796,1746239441300,-450.0,0.00019589,2]
[359671797,1746239441310,-450.0,0.00019589,2]
[359671798,1746239441320,-450.0,0.00019589,2]
[359671799,1746239441329,-450.0,0.00019589,2]
[359671800,1746239441339,-450.0,0.00019589,2]
[359671801,1746239441348,-450.0,0.00019589,2]
[359671802,1746239441358,-450.0,0.00019589,2]
[359671803,1746239441368,-450.0,0.00019589,2]
[359671804,1746239441377,-450.0,0.00019589,2]
[359671805,1746239441387,-450.0,0.00019589,2]
[359671806,1746239441397,-450.0,0.00019589,2]
[359671807,1746239441407,-450.0,0.00019589,2]
[359671808,1746239441416,-450.0,0.00019589,2]
[359671809,1746239441426,-450.0,0.00019589,2]
[359671810,1746239441436,-519.08874398,0.00019589,2]
[359671811,1746239441448,-441.90774528,0.00019589,2]
[359671812,1746239441458,-450.0,0.00019589,2]
[359671813,1746239441468,-450.0,0.00019589,2]
[359671814,1746239441477,-842.53,0.00019589,2]
[359671815,1746239441488,-995.24,0.00019589,2]
[359671816,1746239441498,-450.0,0.00019589,2]
[359671817,1746239441508,-450.0,0.00019589,2]
[359671818,1746239441519,-494.56,0.00019589,2]
[359671819,1746239441530,-450.0,0.00019589,2]
[359671820,1746239441541,-450.0,0.00019589,2]
[359671821,1746239441550,-450.0,0.00019589,2]
[359671822,1746239441560,-450.0,0.00019589,2]
[359671823,1746239441570,-487.52,0.00019589,2]
[359671824,1746239441579,-466.81,0.00019589,2]
[359671825,1746239441589,-450.0,0.00019589,2]
[359671826,1746239441599,-450.0,0.00019589,2]
[359671827,1746239441609,-450.0,0.00019589,2]
[359671828,1746239441618,-5415.71,0.00019589,2]
[359671829,1746239441628,-484.56,0.00019589,2]
[359671830,1746239441638,-450.0,0.00019589,2]
[359671831,1746239441648,-450.0,0.00019589,2]
[359671832,1746239441658,-450.0,0.00019589,2]
[359671833,1746239441667,-450.0,0.00019589,2]
[359671834,1746239441677,-450.0,0.00019589,2]
[359671835,1746239441687,-450.0,0.00019589,2]
[359671836,1746239441697,-450.0,0.00019589,2]
[359671837,1746239441706,-450.0,0.00019589,2]
[359671838,1746239441716,-450.0,0.00019589,2]
[359671839,1746239441725,-450.0,0.00019589,2]
[359671840,1746239441734,-598.05,0.00019589,2]
[359671841,1746239441744,-450.0,0.00019589,2]
[359671842,1746239441753,-450.0,0.00019589,2]
[359671843,1746239441762,-450.0,0.00019589,2]
[359671844,1746239441771,-2191.24,0.00019589,2]
[359671845,1746239441780,-114184.06,0.00019589,2]
[359671846,1746239441790,-450.0,0.00019589,2]
[359671847,1746239441799,-522.09,0.00019589,2]
[359671848,1746239441808,-1282.13,0.00019589,2]
[359671849,1746239441818,-613.34,0.00019589,2]
[359671850,1746239441827,-450.0,0.00019589,2]
[359671851,1746239441836,-450.0,0.00019589,2]
[359671852,1746239441847,-450.0,0.00019589,2]
[359671853,1746239441857,-1727.22,0.00019589,2]
[359671854,1746239441867,-450.0,0.00019589,2]
[359671855,1746239441877,-450.0,0.00019589,2]
[359671856,1746239441887,-450.0,0.00019589,2]
[359671857,1746239441897,-547.18,0.00019589,2]
[359671858,1746239441906,-815.32,0.00019589,2]
[359671859,1746239441916,-450.0,0.00019589,2]
[359671860,1746239441925,-450.0,0.00019589,2]
[359671861,1746239441936,-450.0,0.00019589,2]
[359671862,1746239441945,-450.0,0.00019589,2]
[359671863,1746239441954,-504.83,0.00019589,2]
[359671864,1746239441963,-1460.55,0.00019589,2]
[359671865,1746239441973,-450.0,0.00019589,2]
[359671866,1746239441982,-450.0,0.00019589,2]
[359671867,1746239441992,-3127.21,0.00019589,2]
[359671868,1746239442001,-564.77,0.00019589,2]
[359671869,1746239442010,-503.84,0.00019589,2]
[359671870,1746239442019,-450.0,0.00019589,2]
[359671871,1746239442029,-450.0,0.00019589,2]
[359671872,1746239442039,-514.56,0.00019589,2]
[359671873,1746239442047,-529.78928757,0.00019589,2]
[359671874,1746239442057,-450.0,0.00019589,2]
[359671875,1746239442067,-2852.42,0.00019589,2]
[359671876,1746239442077,-450.0,0.00019589,2]
[359671877,1746239442087,-577.02,0.00019589,2]
[359671878,1746239442097,-450.0,0.00019589,2]
[359671879,1746239442107,-450.0,0.00019589,2]
[359671880,1746239442118,-450.0,0.00019589,2]
[359671881,1746239442127,-315.14875139,0.00019592,2]
[359671882,1746239442138,-450.0,0.00019592,2]
[359671883,1746239442147,-450.0,0.00019592,2]
[359671884,1746239442158,-496.36670578,0.00019592,2]
[359671885,1746239442167,-450.0,0.00019592,2]
[359671886,1746239442176,-450.0,0.00019592,2]
[359671887,1746239442186,-450.0,0.00019592,2]
[359671888,1746239442195,-450.0,0.00019592,2]
[359671889,1746239442205,-450.0,0.00019592,2]
[359671890,1746239442214,-450.0,0.00019592,2]
[359671891,1746239442224,-450.0,0.00019592,2]
[359671892,1746239442234,-450.0,0.00019592,2]
[359671893,1746239442244,-450.0,0.00019592,2]
[359671894,1746239442253,-450.0,0.00019592,2]
[359671895,1746239442263,-450.0,0.00019592,2]
[359671896,1746239442272,-450.0,0.00019592,2]
[359671897,1746239442282,-450.0,0.00019592,2]
[359671898,1746239442292,-450.0,0.00019592,2]
[359671899,1746239442302,-450.0,0.00019592,2]
[359671900,1746239442313,-450.0,0.00019592,2]
[359671901,1746239442323,-450.0,0.00019592,2]
[359671902,1746239442335,-450.0,0.00019592,2]
[359671903,1746239442345,-450.0,0.00019592,2]
[359671904,1746239442356,-450.0,0.00019592,2]
[359671905,1746239442366,-450.0,0.00019592,2]
[359671906,1746239442375,-450.0,0.00019592,2]
[359671907,1746239442384,-482.07,0.00019592,2]
[359671908,1746239442394,-450.0,0.00019592,2]
[359671909,1746239442404,-176.29814584,0.00019592,2]
[359671910,1746239442415,-450.0,0.00019592,2]
[359671911,1746239442425,-450.0,0.00019592,2]
[359671912,1746239442435,-450.0,0.00019592,2]
[359671913,1746239442449,-450.0,0.00019592,2]
[359671914,1746239442459,-450.0,0.00019592,2]
[359671915,1746239442468,-585.64,0.00019592,2]
[359671916,1746239442478,-450.0,0.00019592,2]
[359671917,1746239442489,-450.0,0.00019592,2]
[359671918,1746239442498,-450.0,0.00019592,2]
[359671919,1746239442508,-450.0,0.00019592,2]
[359671920,1746239442518,-450.0,0.00019592,2]
[359671935,1746239442772,-450.0,0.00019592,2]
[359671936,1746239442814,-450.0,0.00019592,2]
[359671937,1746239442824,-577.27296382,0.00019592,2]
[359671938,1746239442833,-450.0,0.00019592,2]
[359671939,1746239442843,-450.0,0.00019592,2]
[359671940,1746239442852,-450.0,0.00019592,2]
[359671941,1746239442863,-450.0,0.00019592,2]
[359671942,1746239442874,-450.0,0.00019592,2]
[359671943,1746239442883,-450.0,0.00019592,2]
[359671944,1746239442892,-457.6,0.00019592,2]
[359671945,1746239442902,-450.0,0.00019592,2]
[359671946,1746239442911,-450.0,0.00019592,2]
[359671947,1746239442921,-450.0,0.00019592,2]
[359671948,1746239442930,-522.54,0.00019592,2]
[359671949,1746239442941,-450.0,0.00019592,2]
[359671950,1746239442950,-450.0,0.00019592,2]
[359671951,1746239442963,-537.71,0.00019592,2]
[359671952,1746239442972,-291.31094517,0.00019592,2]
[359671953,1746239442982,-469.63133459,0.00019592,2]
[359671954,1746239442992,-450.0,0.00019592,2]
[359671955,1746239443002,-457.06505476,0.00019592,2]
[359671956,1746239443013,-450.0,0.00019592,2]
[359671957,1746239443023,-450.0,0.00019592,2]
[359671958,1746239443034,-450.0,0.00019592,2]
[359671959,1746239443044,-450.0,0.00019592,2]
[359671960,1746239443054,-450.0,0.00019592,2]
[359671961,1746239443063,-450.0,0.00019592,2]
[359671962,1746239443072,-450.0,0.00019592,2]
[359671963,1746239443081,-450.0,0.00019592,2]
[359671964,1746239443091,-759.57,0.00019592,2]
[359671965,1746239443100,-450.0,0.00019592,2]
[359671966,1746239443110,-450.0,0.00019592,2]
[359671967,1746239443119,-802.32,0.00019592,2]
[359671968,1746239443128,-450.0,0.00019592,2]
[359671969,1746239443138,-450.0,0.00019592,2]
[359671970,1746239443147,-450.0,0.00019592,2]
[359671971,1746239443156,-450.0,0.00019592,2]
[359671972,1746239443166,-725.12,0.00019592,2]
[359671973,1746239443175,-808.75,0.00019592,2]
[359671974,1746239443184,-3836.06,0.00019592,2]
[359671975,1746239443193,-461.61160083,0.00019592,2]
[359671976,1746239443203,-450.0,0.00019592,2]
[359671977,1746239443212,-456.28960319,0.00019592,2]
[359671978,1746239443222,-450.0,0.00019592,2]
[359671980,1746239443231,-462.97,0.00019592,2]
[359671982,1746239443240,-4710.05,0.00019592,2]
[359671983,1746239443250,-548.9,0.00019592,2]
[359671986,1746239443259,-462.88,0.00019592,2]
[359671988,1746239443269,-4283.39,0.00019592,2]
[359671991,1746239443278,-450.0,0.00019592,2]
[359671994,1746239443288,-450.0,0.00019592,2]
[359671996,1746239443298,-959.31,0.00019592,2]
[359671998,1746239443307,-864.75,0.00019592,2]
[359672000,1746239443317,-450.0,0.00019592,2]
[359672003,1746239443327,-258.20845104,0.00019592,2]
[359672006,1746239443336,-1989.65,0.00019592,2]
[359672008,1746239443346,-450.0,0.00019592,2]
[359672010,1746239443356,-450.0,0.00019592,2]
[359672011,1746239443365,-450.0,0.00019592,2]
[359672012,1746239443375,-85177.16,0.00019592,2]
[359672013,1746239443385,-300.0,0.00019592,2]